fUSD/lending_fUSD_20260108
["ID","MTS","AMOUNT","RATE_DAILY","PERIOD"]
[400966542,1767874255215,-1100.0,0.00017028,2]
[400966544,1767874255224,-500.0,0.00017039,2]
[400966546,1767874255233,-833.0,0.0001704,2]
[400966548,1767874255243,-833.0,0.0001704,2]
[400966550,1767874255252,-833.0,0.0001704,2]
[400966551,1767874255266,-162.0,0.0001704,2]
[400966554,1767874255275,-162.0,0.0001704,2]
[400966555,1767874255285,-162.0,0.0001704,2]
[400966558,1767874255294,-162.0,0.0001704,2]
[400966560,1767874255304,-833.0,0.0001704,2]
[400966562,1767874255313,-162.0,0.0001704,2]
[400966563,1767874255323,-162.0,0.0001704,2]
[400966566,1767874255332,-552.0,0.0001704,2]
[400966567,1767874255341,-833.0,0.0001704,2]
[400966569,1767874255350,-162.0,0.0001704,2]
[400966571,1767874255358,-151.56,0.00017047,2]
[400966573,1767874255368,-152.16,0.00017047,2]
[400966575,1767874255377,-150.0,0.00017047,2]
[400966577,1767874255386,-150.0,0.00017047,2]
[400966580,1767874255395,-150.0,0.00017047,2]
[400966582,1767874255404,-150.0,0.00017047,2]
[400966583,1767874255414,-476.59,0.00017047,2]
[400966586,1767874255425,-358.08,0.00017047,2]
[400966588,1767874255434,-171.3,0.00017047,2]
[400966590,1767874255443,-469.50438451,0.00017057,2]
[400966592,1767874255452,-1000.0,0.000171,2]
[400966594,1767874255461,-1000.0,0.00017112,2]
[400966596,1767874255471,-505.19571057,0.00017119,2]
[400966598,1767874255480,-1000.0,0.00017169,2]
[400966600,1767874255490,-157.72323008,0.00017179,2]
[400966602,1767874255499,-152.0,0.00017191,7]
[400966604,1767874255508,-386.87667747,0.00017252,2]
[400966606,1767874255517,-152.0,0.00017354,8]
[400966608,1767874255526,-833.0,0.0001736,2]
[400966610,1767874255535,-162.0,0.0001736,2]
[400966612,1767874255544,-833.0,0.0001736,2]
[400966614,1767874255554,-833.0,0.0001736,2]
[400966616,1767874255563,-833.0,0.0001736,2]
[400966618,1767874255572,-833.0,0.0001736,2]
[400966620,1767874255582,-833.0,0.0001736,2]
[400966622,1767874255592,-162.0,0.0001736,2]
[400966624,1767874255601,-833.0,0.0001736,2]
[400966626,1767874255611,-162.0,0.0001736,2]
[400966628,1767874255619,-162.0,0.0001736,2]
[400966630,1767874255628,-833.0,0.0001736,2]
[400966632,1767874255637,-162.0,0.0001736,2]
[400966634,1767874255647,-305.0,0.0001736,2]
[400966636,1767874255657,-816.3,0.00017399,2]
[400966638,1767874255666,-1000.0,0.000174,2]
[400966640,1767874255675,-743.50770149,0.00017461,2]
[400966642,1767874255684,-1600.92502348,0.000175,2]
[400966644,1767874255694,-1000.0,0.000175,2]
[400966646,1767874255704,-520.5636209,0.00017502,2]
[400966648,1767874255713,-3000.0,0.00017502,2]
[400966650,1767874255722,-3000.0,0.00017502,2]
[400966652,1767874255732,-152.0,0.00017518,9]
[400966654,1767874255742,-1042.30773041,0.00017534,2]
[400966656,1767874255751,-14563.3653006,0.0001764,2]
[400966658,1767874255760,-833.0,0.0001768,2]
[400966660,1767874255769,-833.0,0.0001768,2]
[400966662,1767874255778,-833.0,0.0001768,2]
[400966664,1767874255788,-833.0,0.0001768,2]
[400966666,1767874255797,-833.0,0.0001768,2]
[400966668,1767874255806,-162.0,0.0001768,2]
[400966670,1767874255815,-833.0,0.0001768,2]
[400966672,1767874255825,-162.0,0.0001768,2]
[400966674,1767874255835,-833.0,0.0001768,2]
[400966676,1767874255844,-162.0,0.0001768,2]
[400966678,1767874255853,-833.0,0.0001768,2]
[400966680,1767874255862,-162.0,0.0001768,2]
[400966682,1767874255871,-152.0,0.00017682,10]
[400966684,1767874255880,-628.5623616,0.000177,2]
[400966686,1767874255889,-1000.0,0.000177,2]
[400966688,1767874255899,-1000.0,0.00017709,2]
[400966690,1767874255911,-157.72323008,0.00017716,2]
[400966692,1767874255926,-5622.33641374,0.0001773,2]
[400966694,1767874255935,-285.47504109,0.00017776,2]
[400966696,1767874255944,-816.3,0.00017803,2]
[400966698,1767874255954,-758.96088212,0.0001782,2]
[400966701,1767874255963,-152.0,0.00017845,11]
[400966703,1767874255972,-661.47,0.00017848,2]
[400966705,1767874255981,-1059.13,0.00017848,2]
[400966707,1767874255990,-661.47,0.00017848,2]
[400966709,1767874255999,-304.30680198,0.00017851,2]
[400966711,1767874256008,-25000.0,0.00017865,3]
[400966713,1767874256018,-37192.72276352,0.0001787,2]
[400966715,1767874256027,-41810.92698667,0.0001787,2]
[400966717,1767874256037,-177.4888516,0.00017871,3]
[400966719,1767874256046,-816.3,0.00017873,2]
[400966721,1767874256057,-816.3,0.00017873,2]
[400966723,1767874256065,-816.3,0.00017873,2]
[400966724,1767874256074,-816.3,0.00017873,2]
[400966727,1767874256083,-816.4899673,0.00017873,2]
[400966728,1767874256092,-25000.0,0.00017874,3]
[400966731,1767874256102,-1100.0,0.00017879,2]
[400966733,1767874256111,-25000.0,0.00017882,3]
[400966734,1767874256120,-25000.0,0.00017891,3]
[400966736,1767874256129,-25000.0,0.000179,3]
[400966739,1767874256140,-7148.26358025,0.000179,3]
[400966741,1767874256152,-25000.0,0.000179,3]
[400966743,1767874256162,-634.76848219,0.000179,2]
[400966745,1767874256171,-505.19571057,0.000179,2]
[400966746,1767874256181,-150.0,0.0001794,2]
[400966748,1767874256190,-500.0,0.00017943,2]
[400966750,1767874256199,-150.0,0.00017943,2]
[400966752,1767874256208,-13426.04649929,0.00017969,4]
[400966754,1767874256220,-10574.69760689,0.00017969,2]
[400966756,1767874256231,-254972.8124434,0.0001797,2]
[400966758,1767874256240,-57922.70900016,0.0001797,2]
[400966760,1767874256249,-888.91833338,0.0001797,2]
[400966762,1767874256259,-868574.1416221,0.0001797,2]
[400966764,1767874256268,-1000.0,0.0001797,2]
[400966767,1767874256277,-500.0,0.0001797,2]
[400966768,1767874256290,-1000.0,0.0001797,2]
[400966771,1767874256301,-500.0,0.0001797,2]
[400966772,1767874256310,-1000.0,0.0001797,2]
[400966775,1767874256321,-500.0,0.0001797,2]
[400966777,1767874256331,-500.0,0.0001797,2]
[400966779,1767874256341,-1000.0,0.0001797,2]
[400966781,1767874256350,-1000.0,0.0001797,2]
[400966783,1767874256360,-500.0,0.0001797,2]
[400966785,1767874256369,-1000.0,0.0001797,2]
[400966787,1767874256379,-1000.0,0.0001797,2]
[400966789,1767874256388,-584.41347442,0.0001797,2]
[400966791,1767874256397,-1446.54474908,0.0001797,2]
[400966793,1767874256406,-500.75581913,0.00017973,2]
[400966795,1767874256415,-500.0,0.00017973,2]
[400966797,1767874256425,-500.0,0.00017973,2]
[400966799,1767874256434,-150.49880534,0.00017973,2]
[400966801,1767874256443,-500.0,0.00017973,2]
[400966803,1767874256452,-500.0,0.00017973,2]
[400966805,1767874256462,-500.0,0.00017973,2]
[400966807,1767874256472,-500.17178809,0.00017973,2]
[400966809,1767874256481,-150.0,0.00017973,2]
[400966810,1767874256491,-500.0,0.00017973,2]
[400966813,1767874256500,-426.73386812,0.00017973,2]
[400966815,1767874256510,-160.89060159,0.00017973,2]
[400966817,1767874256519,-500.0,0.00017973,2]
[400966819,1767874256529,-500.0,0.00017973,2]
[400966821,1767874256538,-500.0,0.00017973,2]
[400966822,1767874256547,-500.0,0.00017973,2]
[400966825,1767874256558,-500.0,0.00017973,2]
[400966827,1767874256567,-500.0,0.00017973,2]
[400966829,1767874256577,-500.0,0.00017973,2]
[400966831,1767874256586,-501.18870733,0.00017973,2]
[400966833,1767874256595,-385.16009683,0.00017973,2]
[400966835,1767874256604,-338.62982115,0.00017973,2]
[400966837,1767874256613,-500.0,0.00017973,2]
[400966839,1767874256623,-199.99514505,0.0001799,2]
[400966841,1767874256632,-500.0,0.00017998,2]
[400966843,1767874256641,-150.0,0.00017999,2]
[400966845,1767874256651,-11518.53087648,0.00017999,2]
[400966847,1767874256660,-1006.1979,0.00017999,2]
[400966849,1767874256671,-300.0,0.00017999,2]
[400966851,1767874256680,-300.0,0.00017999,2]
[400966853,1767874256690,-666.0,0.00017999,2]
[400966855,1767874256698,-300.0,0.00017999,2]
[400966857,1767874256707,-300.0,0.00017999,2]
[400966859,1767874256717,-666.0,0.00017999,2]
[400966860,1767874256726,-300.0,0.00017999,2]
[400966863,1767874256736,-300.0,0.00017999,2]
[400966865,1767874256745,-666.0,0.00017999,2]
[400966867,1767874256755,-666.0,0.00017999,2]
[400966868,1767874256764,-323.23631266,0.00017999,2]
[400966870,1767874256773,-300.0,0.00017999,2]
[400966873,1767874256783,-5970.77362135,0.00017999,2]
[400966875,1767874256792,-300.0,0.00017999,2]
[400966877,1767874256808,-666.0,0.00017999,2]
[400966879,1767874256818,-300.0,0.00017999,2]
[400966881,1767874256827,-165.91168261,0.00018,2]
[400966883,1767874256836,-511727.85252223,0.00018,2]
[400966978,1767874257811,-151.0,0.00010629,2]
[400966980,1767874257822,-197.223878,0.00015068,2]
[400966982,1767874257830,-1731.276142,0.00018,2]
[400966985,1767874257845,-6286.95490451,0.00018,2]
[400966987,1767874257856,-5712.99188177,0.00018,2]
[400966989,1767874257867,-2332.25914526,0.00018,2]
[400966991,1767874257879,-1375.32586997,0.00018,2]
[400967004,1767874257986,-753.01482349,0.00018,2]
[400967006,1767874257997,-993.0,0.00018,2]
[400967014,1767874258060,-197.223878,0.00015068,2]
[400967016,1767874258068,-3671.62892696,0.00018,2]
[400967018,1767874258079,-651.4799978,0.00018,2]
[400967020,1767874258090,-260.05000289,0.00018,2]
[400968370,1767874272599,-10000.01,0.00010213,2]
[400968392,1767874272918,-10000.01,0.00010213,2]
[400968399,1767874285112,-10000.01,0.00010213,2]
[400968400,1767874285357,-3580.3523,0.00010213,2]
[400968401,1767874285455,-2839.3054,0.00010213,2]
[400968402,1767874285914,5534.0,0.00015,3]
[400968403,1767874293293,2565.828,0.00010009,2]
[400968404,1767874293430,184.392,0.00010009,2]
[400968406,1767874317511,5534.0,0.00015,3]
[400968407,1767874349471,3752.0,0.000149,3]
[400968408,1767874363248,-619.02424508,0.00010163,2]
[400968409,1767874363276,-300.0,0.00010212,2]
[400968410,1767874363304,-150.0,0.00010212,2]
[400968411,1767874363332,-284.0,0.00010212,2]
[400968412,1767874363361,-189.0,0.00010212,2]
[400968413,1767874363549,-6915.96150984,0.00010213,2]
[400968414,1767874363583,-10000.01,0.00010213,2]
[400968415,1767874363613,-10000.01,0.00010213,2]
[400968416,1767874363638,-10000.01,0.00010213,2]
[400968417,1767874363664,-10000.01,0.00010213,2]
[400968418,1767874364590,-668.29529752,0.00010213,2]
[400968419,1767874372498,-10000.01,0.00010213,2]
[400968420,1767874372659,-10000.01,0.00010213,2]
[400968421,1767874372845,-10000.01,0.00010213,2]
[400968422,1767874372954,-10000.01,0.00010213,2]
[400968423,1767874373201,-10000.01,0.00010213,2]
[400968424,1767874395849,-1200.0,0.00010212,2]
[400968425,1767874395937,-7600.01,0.00010213,2]
[400968426,1767874395951,-10000.01,0.00010213,2]
[400968427,1767874407387,-10000.01,0.00010213,2]
[400968428,1767874407430,-10000.01,0.00010213,2]
[400968429,1767874423341,-10000.01,0.00010213,2]
[400968430,1767874427055,-10000.01,0.00010213,2]
[400968431,1767874427218,-10000.01,0.00010213,2]
[400968432,1767874427457,-10000.01,0.00010213,2]
[400968433,1767874428401,-10000.01,0.00010213,2]
[400968434,1767874428439,-10000.01,0.00010213,2]
[400968435,1767874428463,-10000.01,0.00010213,2]
[400968436,1767874428892,-162.1637805,0.00010213,2]
[400968437,1767874433314,-10000.01,0.00010213,2]
[400968438,1767874434182,999.0,0.00013523,3]
[400968439,1767874439674,-412.68283006,0.00010113,2]
[400968440,1767874439719,-9174.64433988,0.00010213,2]
[400968441,1767874443162,-300.0,0.00010212,2]
[400968442,1767874443213,-9400.01,0.00010213,2]
[400968443,1767874447795,5534.0,0.00015,5]
[400968444,1767874449424,-4663.68878581,0.00010203,2]
[400968445,1767874449451,-672.63242838,0.00010203,2]
[400968446,1767874452868,-10000.01,0.00010213,2]
[400968447,1767874453001,-10000.01,0.00010213,2]
[400968448,1767874456151,-10000.01,0.00010213,2]
[400968449,1767874456375,-10000.01,0.00010213,2]
[400968450,1767874456546,-10000.01,0.00010213,2]
[400968451,1767874457043,-10000.01,0.00010213,2]
[400968452,1767874462513,-10000.01,0.00010213,2]
[400968453,1767874462679,-10000.01,0.00010213,2]
[400968454,1767874462914,-10000.01,0.00010213,2]
[400968455,1767874470981,-10000.01,0.00010213,2]
[400968456,1767874474715,-10000.01,0.00010213,2]
[400968457,1767874477803,-10000.01,0.00010213,2]
[400968458,1767874477918,-10000.01,0.00010213,2]
[400968459,1767874487818,-10000.01,0.00010213,2]
[400968460,1767874487958,-10000.01,0.00010213,2]
[400968461,1767874488100,-10000.01,0.00010213,2]
[400968462,1767874494150,-10000.01,0.00010213,2]
[400968463,1767874494266,-10000.01,0.00010213,2]
[400968464,1767874494391,-10000.01,0.00010213,2]
[400968465,1767874503634,-300.0,0.00010212,2]
[400968466,1767874503663,-1200.0,0.00010212,2]
[400968467,1767874503692,-300.0,0.00010212,2]
[400968468,1767874503721,-150.0,0.00010212,2]
[400968469,1767874503837,-6100.01,0.00010213,2]
[400968470,1767874509862,-10000.01,0.00010213,2]
[400968471,1767874510184,-10000.01,0.00010213,2]
[400968472,1767874548905,-373.86677604,0.00010212,2]
[400968473,1767874548988,-9252.27644792,0.00010213,2]
[400968475,1767874557786,-500.0,0.00010212,2]
[400968476,1767874557818,-406.800668,0.00010212,2]
[400968477,1767874557849,-500.0,0.00010212,2]
[400968478,1767874557881,-500.0,0.00010212,2]
[400968479,1767874557910,-500.0,0.00010212,2]
[400968481,1767874558401,-5186.408664,0.00010213,2]
[400968488,1767874561261,-10000.01,0.00010213,2]
[400968501,1767874726809,-206.41822793,0.00010013,2]
[400968502,1767875067801,-371.45406818,0.00010039,2]
[400968503,1767875069315,-300.93263813,0.00010039,2]
[400968504,1767875070905,-167.65157401,0.00010039,2]
[400968505,1767875081691,-306.72982583,0.00010039,2]
[400968506,1767875084096,-198.00530647,0.00010039,2]
[400968512,1767875156694,-186.31889276,0.00010039,2]
[400968513,1767875158357,-297.2,0.00010039,2]
[400968515,1767875160298,-24.12769462,0.00010039,2]
[400968516,1767875160325,-245.51560955,0.00010111,2]
[400968517,1767875175161,-54.48439045,0.00010111,2]
[400968518,1767875175185,-166.78560955,0.00010111,2]
[400968519,1767875176557,-342.83780307,0.00010111,2]
[400968520,1767875180303,-300.0,0.00010111,2]
[400968524,1767875274257,9312.39,0.00010032,2]
[400968539,1767875313444,-1000.0,0.0001011,2]
[400968540,1767875313474,-1000.0,0.0001011,2]
[400968541,1767875313506,-250.0,0.0001011,2]
[400968542,1767875313536,-300.0,0.0001011,2]
[400968543,1767875313565,-300.0,0.0001011,2]
[400968544,1767875313598,-150.0,0.0001011,2]
[400968545,1767875313630,-300.0,0.0001011,2]
[400968546,1767875313660,-1200.0,0.0001011,2]
[400968547,1767875313690,-250.0,0.0001011,2]
[400968548,1767875313720,-200.01,0.0001011,2]
[400968549,1767875319429,-390.0,0.0001011,2]
[400968550,1767875319461,-153.10356556,0.0001011,2]
[400968551,1767875319490,-99.99,0.0001011,2]
[400968552,1767875319521,-322.09634545,0.00010111,2]
[400968553,1767875319552,-444.5247316,0.00010111,2]
[400968554,1767875319581,-500.0,0.00010111,2]
[400968555,1767875319609,-600.3986273,0.00010111,2]
[400968556,1767875319636,-500.0,0.00010111,2]
[400968557,1767875319664,-500.0,0.00010111,2]
[400968558,1767875319692,-500.0,0.00010111,2]
[400968559,1767875319720,-500.0,0.00010111,2]
[400968560,1767875319753,-479.78346018,0.00010111,2]
[400968562,1767875323186,-20.21653982,0.00010111,2]
[400968563,1767875323219,-271.098774,0.00010111,2]
[400968564,1767875323252,-500.0,0.00010111,2]
[400968565,1767875323287,-500.0,0.00010111,2]
[400968566,1767875323329,-150.0,0.00010111,2]
[400968567,1767875323362,-500.0,0.00010111,2]
[400968568,1767875323395,-157.79600896,0.00010111,2]
[400968569,1767875323442,-500.0,0.00010111,2]
[400968570,1767875323478,-500.0,0.00010111,2]
[400968571,1767875323519,-500.0,0.00010111,2]
[400968572,1767875323553,-170.96921195,0.00010111,2]
[400968573,1767875323596,-500.0,0.00010111,2]
[400968574,1767875323637,-500.0,0.00010111,2]
[400968575,1767875331144,-405.97906318,0.00010012,2]
[400968576,1767875333660,-200.0,0.00010012,2]
[400968577,1767875342463,300.0,0.00010011,2]
[400968578,1767875367230,-186.46532721,0.00010012,2]
[400968579,1767875373222,-159.04489093,0.00010012,2]
[400968580,1767875376040,-347.94489093,0.00010012,2]
[400968588,1767875401569,300.0,0.00010011,2]
[400968589,1767875401610,300.0,0.00010011,2]
[400968590,1767875401754,1200.0,0.00010011,2]
[400968591,1767875402033,300.0,0.00010011,2]
[400968592,1767875402098,150.0,0.00010011,2]
[400968593,1767875415875,5546.79765656,0.0001,2]
[400968601,1767875431486,-998700.56582775,0.00010012,2]
[400968602,1767875431496,-232.0,0.00010012,2]
[400968603,1767875431507,-293.46428555,0.00010061,2]
[400968604,1767875431516,-694.68023995,0.0001011,2]
[400968605,1767875431526,-1000.0,0.0001011,2]
[400968606,1767875431537,-310.19202371,0.0001011,2]
[400968607,1767875431547,-500.0,0.0001011,2]
[400968608,1767875431556,-422.26877916,0.0001011,2]
[400968609,1767875431566,-528.38260467,0.0001011,2]
[400968610,1767875431575,-507.7604676,0.0001011,2]
[400968611,1767875431585,-500.0,0.0001011,2]
[400968612,1767875431595,-500.0,0.0001011,2]
[400968613,1767875431604,-488.62897081,0.0001011,2]
[400968614,1767875431614,-500.0,0.0001011,2]
[400968615,1767875431624,-500.0,0.0001011,2]
[400968616,1767875431634,-500.0,0.0001011,2]
[400968617,1767875431643,-500.0,0.0001011,2]
[400968618,1767875431653,-500.0,0.0001011,2]
[400968619,1767875431663,-500.0,0.0001011,2]
[400968620,1767875431673,-500.0,0.0001011,2]
[400968621,1767875431683,-500.0,0.0001011,2]
[400968622,1767875431694,-500.0,0.0001011,2]
[400968623,1767875431704,-500.0,0.0001011,2]
[400968624,1767875431714,-500.0,0.0001011,2]
[400968625,1767875431723,-500.0,0.0001011,2]
[400968626,1767875431733,-601.55771138,0.0001011,2]
[400968627,1767875431743,-685.53402141,0.0001011,2]
[400968628,1767875431752,-685.53402141,0.0001011,2]
[400968630,1767875431762,-685.53402141,0.0001011,2]
[400968632,1767875431771,-685.53402141,0.0001011,2]
[400968634,1767875431780,-685.53402141,0.0001011,2]
[400968636,1767875431789,-685.53402141,0.0001011,2]
[400968638,1767875431799,-685.53402141,0.0001011,2]
[400968640,1767875431808,-685.53402141,0.0001011,2]
[400968641,1767875431817,-685.53402141,0.0001011,2]
[400968642,1767875431827,-685.53402141,0.0001011,2]
[400968643,1767875431836,-685.53402141,0.0001011,2]
[400968644,1767875431846,-685.53402141,0.0001011,2]
[400968645,1767875431856,-685.53402141,0.0001011,2]
[400968646,1767875431866,-685.53402141,0.0001011,2]
[400968647,1767875431875,-685.53402141,0.0001011,2]
[400968648,1767875431885,-685.53402141,0.0001011,2]
[400968649,1767875431894,-685.53402141,0.0001011,2]
[400968650,1767875431904,-685.53402141,0.0001011,2]
[400968651,1767875431914,-685.53402141,0.0001011,2]
[400968652,1767875431923,-685.53402141,0.0001011,2]
[400968653,1767875431933,-685.53402141,0.0001011,2]
[400968654,1767875431942,-685.53402141,0.0001011,2]
[400968655,1767875431952,-685.53402141,0.0001011,2]
[400968656,1767875431961,-685.53402141,0.0001011,2]
[400968657,1767875431971,-685.53402141,0.0001011,2]
[400968658,1767875431982,-685.53402141,0.0001011,2]
[400968659,1767875431991,-685.53402141,0.0001011,2]
[400968660,1767875432000,-685.53402141,0.0001011,2]
[400968661,1767875432010,-685.53402141,0.0001011,2]
[400968662,1767875432019,-685.53402141,0.0001011,2]
[400968663,1767875432029,-685.53402141,0.0001011,2]
[400968664,1767875432038,-685.53402141,0.0001011,2]
[400968665,1767875432048,-685.53402141,0.0001011,2]
[400968666,1767875432057,-685.53402141,0.0001011,2]
[400968667,1767875432066,-685.53402141,0.0001011,2]
[400968668,1767875432076,-685.53402141,0.0001011,2]
[400968669,1767875432085,-685.53402141,0.0001011,2]
[400968670,1767875432095,-685.53402141,0.0001011,2]
[400968671,1767875432104,-685.53402141,0.0001011,2]
[400968672,1767875432114,-685.53402141,0.0001011,2]
[400968673,1767875432123,-685.53402141,0.0001011,2]
[400968674,1767875432133,-685.53402141,0.0001011,2]
[400968675,1767875432142,-685.53402141,0.0001011,2]
[400968676,1767875432152,-685.53402141,0.0001011,2]
[400968677,1767875432161,-685.53402141,0.0001011,2]
[400968678,1767875432170,-685.53402141,0.0001011,2]
[400968679,1767875432179,-685.53402141,0.0001011,2]
[400968680,1767875432189,-685.53402141,0.0001011,2]
[400968681,1767875432198,-685.53402141,0.0001011,2]
[400968682,1767875432208,-665.75900155,0.0001011,2]
[400968683,1767875432217,-665.75900155,0.0001011,2]
[400968684,1767875432227,-665.75900155,0.0001011,2]
[400968685,1767875432236,-665.75900155,0.0001011,2]
[400968686,1767875432246,-665.75900155,0.0001011,2]
[400968687,1767875432256,-665.75900155,0.0001011,2]
[400968688,1767875432265,-665.75900155,0.0001011,2]
[400968689,1767875432275,-665.75900155,0.0001011,2]
[400968690,1767875432284,-665.75900155,0.0001011,2]
[400968691,1767875432294,-665.75900155,0.0001011,2]
[400968692,1767875432303,-665.75900155,0.0001011,2]
[400968693,1767875432312,-665.75900155,0.0001011,2]
[400968694,1767875432322,-665.75900155,0.0001011,2]
[400968695,1767875432331,-665.75900155,0.0001011,2]
[400968696,1767875432341,-665.75900155,0.0001011,2]
[400968697,1767875432351,-665.75900155,0.0001011,2]
[400968698,1767875432360,-665.75900155,0.0001011,2]
[400968699,1767875432370,-665.75900155,0.0001011,2]
[400968700,1767875432379,-665.75900155,0.0001011,2]
[400968701,1767875432390,-665.75900155,0.0001011,2]
[400968702,1767875432399,-665.75900155,0.0001011,2]
[400968703,1767875432409,-665.75900155,0.0001011,2]
[400968704,1767875432418,-665.75900155,0.0001011,2]
[400968705,1767875432427,-665.75900155,0.0001011,2]
[400968706,1767875432437,-665.75900155,0.0001011,2]
[400968707,1767875432448,-665.75900155,0.0001011,2]
[400968708,1767875432458,-300.0,0.00010111,2]
[400968709,1767875432470,-383.58334533,0.00010113,2]
[400968710,1767875432479,-383.58334533,0.00010113,2]
[400968711,1767875432488,-815.686,0.00010113,2]
[400968712,1767875432498,-55399.9464,0.00010113,2]
[400968713,1767875432507,-2500.0,0.00010113,2]
[400968714,1767875432516,-79082.81422119,0.00010158,2]
[400968715,1767875432525,-184.393,0.00010169,2]
[400968716,1767875432535,-2052.663,0.00010169,2]
[400968717,1767875432545,-13965.43,0.00010169,2]
[400968718,1767875432555,-57217.41,0.00010169,2]
[400968719,1767875432564,-13359.63,0.00010169,2]
[400968720,1767875432574,-9999.99,0.00010169,2]
[400968721,1767875432584,-1534.26,0.00010169,2]
[400968722,1767875432595,-150.99,0.00010169,2]
[400968723,1767875432606,-2521.94,0.00010205,2]
[400968724,1767875432615,-150.99,0.00010205,2]
[400968725,1767875432625,-383.58334533,0.00010207,2]
[400968726,1767875432635,-999.99,0.00010207,2]
[400968727,1767875432644,-9999.99,0.00010207,2]
[400968728,1767875432653,-510.51,0.00010207,2]
[400968729,1767875432662,-1000.0,0.00010213,2]
[400968730,1767875432672,-500.0,0.00010213,2]
[400968731,1767875432682,-33580.3823,0.00010213,2]
[400968732,1767875432692,-2428.5729,0.00010213,2]
[400968733,1767875432702,-234.22420722,0.00010213,2]
[400968734,1767875432711,-200.0,0.00010277,2]
[400968735,1767875432720,-500.0,0.00010277,2]
[400968736,1767875432730,-500.0,0.00010277,2]
[400968737,1767875432739,-500.0,0.00010277,2]
[400968738,1767875432748,-500.0,0.00010277,2]
[400968739,1767875432757,-500.0,0.00010277,2]
[400968740,1767875432767,-500.0,0.00010277,2]
[400968741,1767875432776,-500.0,0.00010277,2]
[400968742,1767875432786,-177.22726412,0.00010277,2]
[400968743,1767875432796,-200.0,0.00010277,2]
[400968744,1767875432805,-500.0,0.00010277,2]
[400968745,1767875432814,-500.0,0.00010277,2]
[400968746,1767875432824,-590.74860506,0.00010277,2]
[400968747,1767875432833,-500.0,0.00010277,2]
[400968748,1767875432843,-151.0,0.00010277,2]
[400968749,1767875432853,-200.0,0.00010277,2]
[400968750,1767875432863,-151.0,0.00010277,2]
[400968751,1767875432873,-199.45041499,0.00010277,2]
[400968752,1767875432883,-151.0,0.00010277,2]
[400968753,1767875432891,-151.0,0.00010277,2]
[400968754,1767875432901,-151.0,0.00010277,2]
[400968755,1767875432910,-151.0,0.00010277,2]
[400968756,1767875432919,-151.0,0.00010277,2]
[400968757,1767875432928,-151.0,0.00010277,2]
[400968758,1767875432937,-151.0,0.00010277,2]
[400968759,1767875432946,-151.0,0.00010277,2]
[400968760,1767875432955,-151.0,0.00010277,2]
[400968761,1767875432964,-151.0,0.00010277,2]
[400968762,1767875432973,-151.0,0.00010277,2]
[400968763,1767875432982,-151.0,0.00010277,2]
[400968764,1767875432991,-151.0,0.00010277,2]
[400968765,1767875433000,-151.0,0.00010277,2]
[400968766,1767875433009,-151.0,0.00010277,2]
[400968767,1767875433018,-151.0,0.00010277,2]
[400968768,1767875433027,-151.0,0.00010277,2]
[400968769,1767875433036,-151.0,0.00010277,2]
[400968770,1767875433046,-151.0,0.00010277,2]
[400968771,1767875433055,-151.0,0.00010277,2]
[400968772,1767875433064,-151.0,0.00010277,2]
[400968773,1767875433073,-151.0,0.00010277,2]
[400968774,1767875433082,-151.0,0.00010277,2]
[400968775,1767875433091,-151.0,0.00010277,2]
[400968776,1767875433100,-151.0,0.00010277,2]
[400968777,1767875433109,-151.0,0.00010277,2]